{"text_format":"3","workbook":"xlsx","n_sheets":3,"sheets":["ToR","Sheet2","Sheet1"],"not_rendered":{"defined_names":38},"read":"whole","date_system":"1900"}

{"sheet":"ToR","index":0,"n_rows":39,"n_cols":11,"rows_kept":39,"merged":[[0,0,0,10],[21,0,21,10],[23,0,23,9],[24,0,24,9],[25,0,25,9],[26,0,26,9],[27,0,27,9],[28,0,28,9],[29,0,29,9],[30,0,30,9],[31,0,31,9],[32,0,32,9],[33,0,33,9],[34,0,34,9],[35,0,35,9],[36,0,36,9]]}
["ITT # PFRU2-2025-028-2 Procurement of Automotive and household goods | ITT # PFRU2-2025-028-2 Закупівля Автомобільних та побутових товарів\nVolume 3 - Terms of Reference (ToR)/Specifications (included as a separate Annex to this Invitation to Tender) | Розділ 3 - Технічне завдання (ТЗ)/Специфікації (включено як окремий додаток до цього Запрошення до участі в тендері)"]
[]
["№ LOT | № ЛОТ","Column1","№ Item |\n№ Позиції","Name according to the procurement - Description and Specifications of Item\n|\n(It is allowed to submit analogues for any positions)","Назва згідно закупівлі - Опис і специфікації предмету закупівлі\n|\n(Дозволяється подача аналогів на будь-які позиції)","Units \n| \nОд. вим.","Quantity to order / \nКількість к замовленню","Name according to the proposal \n| \nНазва згідно пропозиції","Proposed description & technical specifications (include brand & model (if applicable), etc.) \n|\nПропонований опис і технічні характеристики (включаючи марку та модель(за наявності), тощо)","Unit Price, UAH excl. VAT\n| \nЦіна за од-цю, гривень без ПДВ","Total Price, UAH excl. VAT \n| \nЗагальна ціна, гривень без ПДВ"]
["Automotive goods | Автомобільні товари"]
[1,1,{"$f":"_xlfn.CONCAT(Table1[[#This Row],[№ LOT | № ЛОТ]],\".\",Table1[[#This Row],[Column1]])","v":"1.1"},"Jerry can (60 liters), specifications below or similar\nVolume: 60 L\nShape: Vertical\nMaterial: Metal\nApplication: For fuel","Каністра (60 літрів), характеристики нижче або аналог\nОб'єм\t60 л\nФорма:\tвертикальні \nМатеріал виготовлення\t: Метал \nЗастосування: Для палива ","pcs. | шт.",200,null,null,{"v":0,"d":"0.00"},{"$f":"Table1[[#This Row],[Unit Price, UAH excl. VAT\n| \nЦіна за од-цю, гривень без ПДВ]]*Table1[[#This Row],[Quantity to order / \nКількість к замовленню]]","v":{"v":0,"d":"0.00"}}]
[1,{"$f":"B5+1","v":2},{"$f":"_xlfn.CONCAT(Table1[[#This Row],[№ LOT | № ЛОТ]],\".\",Table1[[#This Row],[Column1]])","v":"1.2"},"Battery Booster, specifications below or similar\nVoltage: 12V, 24V\nEquipment type: Passenger car, Truck\nNominal power: 1500 A (amperes)\nPeak power: 3000 A (amperes)\nBattery capacity: 42000 mAh (milliampere-hours)","Пусковий пристрій Бустер, характеристики нижче або аналог\nНапруга, Вольт  - 12V,24V\nТип техніки - Легковий автомобіль, Вантажний автомобіль \nПотужність номінальна - 1500 А (ампер)\nПотужність пікова - 3000 А (ампер)\nАкумулятор - 42000 мА год (міліампер-годин) ","pcs. | шт.",50,null,null,{"v":0,"d":"0.00"},{"$f":"Table1[[#This Row],[Unit Price, UAH excl. VAT\n| \nЦіна за од-цю, гривень без ПДВ]]*Table1[[#This Row],[Quantity to order / \nКількість к замовленню]]","v":{"v":0,"d":"0.00"}}]
[1,{"$f":"B6+1","v":3},{"$f":"_xlfn.CONCAT(Table1[[#This Row],[№ LOT | № ЛОТ]],\".\",Table1[[#This Row],[Column1]])","v":"1.3"},"Car Compressor (Electric), specifications below or similar\nPresence of pressure gauge: Yes\nMaximum pressure (for compressor): 10 atm\nAir inflow rate: 90 L/min\nPower supply: 12 V\nPower supply type: Clamps to the battery\nPower: 300 W\nContinuous operating time: 30 minutes","Автомобільний компресор (електричний), характеристики нижче або аналог\nНаявність манометра в компресорі:\tтак\nМаксимальний тиск (для компресора), атм:\t10\nШвидкість накачування повітря, л/хв:\t90\nЖивлення, В:\t12\nТип живлення:\tКлеми на акумулятор\nПотужність, Вт:\t300\nЧас роботи без зупинки, хв:\t30","pcs. | шт.",50,null,null,{"v":0,"d":"0.00"},{"$f":"Table1[[#This Row],[Unit Price, UAH excl. VAT\n| \nЦіна за од-цю, гривень без ПДВ]]*Table1[[#This Row],[Quantity to order / \nКількість к замовленню]]","v":{"v":0,"d":"0.00"}}]
[1,4,{"$f":"_xlfn.CONCAT(Table1[[#This Row],[№ LOT | № ЛОТ]],\".\",Table1[[#This Row],[Column1]])","v":"1.4"},"Tow Rope, specifications below or similar\nLoad capacity: 11 T\nLength: 5 m\nAttachment type: Hook-to-hook","Трос буксирувальний, характеристики нижче або аналог\nНавантаження: 11 Т\nДовжина: 5 м\nТип кріплення - скоба-скоба","pcs. | шт.",50,null,null,{"v":0,"d":"0.00"},{"$f":"Table1[[#This Row],[Unit Price, UAH excl. VAT\n| \nЦіна за од-цю, гривень без ПДВ]]*Table1[[#This Row],[Quantity to order / \nКількість к замовленню]]","v":{"v":0,"d":"0.00"}}]
[1,5,{"$f":"_xlfn.CONCAT(Table1[[#This Row],[№ LOT | № ЛОТ]],\".\",Table1[[#This Row],[Column1]])","v":"1.5"},"Jump Start Cable, specifications below or similar\nMaximum starting current: 500 A\nVoltage: 12 V\nCable length: 3.5 m\nCable type: LA 193500 (for all types of vehicles with a 12 V on-board voltage and a maximum starting current up to 500 A)\nPurpose: Designed for starting a vehicle's engine with a discharged battery using the battery of another vehicle.","Пусковий кабель, характеристики нижче або аналог\nПусковий струм (макс): 500 А\nНапруга: 12 В\n Довжина кабелю: 3,5 м \nКабель пусковий LA 193500 (для всіх видів автомобілів з бортовою напругою 12 В і максимальним пусковим струмом до 500 А) \nПризначення:  для запуску двигуна автомобіля з розрядженою акумуляторною батареєю від акумулятора іншого автомобіля.","pcs. | шт.",50,null,null,{"v":0,"d":"0.00"},{"$f":"Table1[[#This Row],[Unit Price, UAH excl. VAT\n| \nЦіна за од-цю, гривень без ПДВ]]*Table1[[#This Row],[Quantity to order / \nКількість к замовленню]]","v":{"v":0,"d":"0.00"}}]
[1,6,{"$f":"_xlfn.CONCAT(Table1[[#This Row],[№ LOT | № ЛОТ]],\".\",Table1[[#This Row],[Column1]])","v":"1.6"},"Portable Multifunctional Flashlight foe Vehicles, specifications below or similar\nHandle: Made of high-quality plastic with a built-in powerful magnet\nMaximum brightness: 400 lumens\nBuilt-in battery: With USB-C charging\nUV light: Included","Портативний багатофункціональний автомобільний ліхтар, характеристики нижче або аналог\nРукоятка з високоякісного пластику із вбудованим в неї потужним магнітом\nМаксимальна яскравість 400 люмен\nВбудований акумулятор з USB-C зарядкою\nНаявність УФ-світла","pcs. | шт.",50,null,null,{"v":0,"d":"0.00"},{"$f":"Table1[[#This Row],[Unit Price, UAH excl. VAT\n| \nЦіна за од-цю, гривень без ПДВ]]*Table1[[#This Row],[Quantity to order / \nКількість к замовленню]]","v":{"v":0,"d":"0.00"}}]
[1,7,{"$f":"_xlfn.CONCAT(Table1[[#This Row],[№ LOT | № ЛОТ]],\".\",Table1[[#This Row],[Column1]])","v":"1.7"},"Automotive Fire Extinguisher, specifications below or similar\nType: Powder\nCharge Weight: 2 kg\nPurpose: For extinguishing solid, liquid, and gaseous substances (Classes A, B, C)\nWeight: 3 kg\nOperating Temperature Range: From -20°C to +50°C\nDischarge Time: 6 seconds\n","Вогнегасник автомобільний, характеристики нижче або аналог\nТип: Порошковий\nМаса заряду: 2 кг\nПризначення: Для гасіння твердих, рідких і газоподібних речовин (класів А, В, С)\nМаса: 3 кг\nДіапазон температур експлуатації: від -20 °С до +50 °С\nТривалість подачі вогнегасної речовини: 6 секунд","pcs. | шт.",50,null,null,{"v":0,"d":"0.00"},{"$f":"Table1[[#This Row],[Unit Price, UAH excl. VAT\n| \nЦіна за од-цю, гривень без ПДВ]]*Table1[[#This Row],[Quantity to order / \nКількість к замовленню]]","v":{"v":0,"d":"0.00"}}]
[1,8,{"$f":"_xlfn.CONCAT(Table1[[#This Row],[№ LOT | № ЛОТ]],\".\",Table1[[#This Row],[Column1]])","v":"1.8"},"Folding Shovel for Car, specifications below or similar\nShovel Type: Entrenching\nMaterial of Working Part: Steel\nMaterial of Handle: Steel","Лопата складна для авто, характеристики нижче або аналог\nТип лопати: саперна\nМатеріал робочої частини: сталь\nМатеріал ручки: сталь","pcs. | шт.",50,null,null,{"v":0,"d":"0.00"},{"$f":"Table1[[#This Row],[Unit Price, UAH excl. VAT\n| \nЦіна за од-цю, гривень без ПДВ]]*Table1[[#This Row],[Quantity to order / \nКількість к замовленню]]","v":{"v":0,"d":"0.00"}}]
[1,9,{"$f":"_xlfn.CONCAT(Table1[[#This Row],[№ LOT | № ЛОТ]],\".\",Table1[[#This Row],[Column1]])","v":"1.9"},"Hydraulic Bottle Jack 10 t, specifications below or similar\nType: Bottle\nModel: Hydraulic\nLifting Capacity: 10 t\nMin. Height: 208 mm\nMax. Height: 523 mm","Домкрат гідравлічний пляшковий 10 т, характеристики нижче або аналог\nВид: пляшковий\nТип6 гідравлічний \nВантажопідйомність - 10т\nМін. висота - 208мм\nМакс. висота - 523мм","pcs. | шт.",50,null,null,{"v":0,"d":"0.00"},{"$f":"Table1[[#This Row],[Unit Price, UAH excl. VAT\n| \nЦіна за од-цю, гривень без ПДВ]]*Table1[[#This Row],[Quantity to order / \nКількість к замовленню]]","v":{"v":0,"d":"0.00"}}]
[null,null,{"$f":"_xlfn.CONCAT(Table1[[#This Row],[№ LOT | № ЛОТ]],\".\",Table1[[#This Row],[Column1]])","v":"."},{"$nulls":6},"Total amount VAT excl. |\nЗагальна сума без ПДВ",{"$f":"SUBTOTAL(109,K5:K13)","v":{"v":0,"d":"0.00"}}]
["Household goods | Побутові товари"]
[2,1,{"$f":"_xlfn.CONCAT(Table1[[#This Row],[№ LOT | № ЛОТ]],\".\",Table1[[#This Row],[Column1]])","v":"2.1"},"Fire Extinguisher ВП-6 (ОП-6), specifications below or similar\nFeatures - With pressure gauge\nDevice Type - Portable (manual) fire extinguisher\nApplicable for Fires - A, B, C\nType of Output Jet - IВ(K)\nType of Foam Flow - ОВП(B)\nType of Powder - ABCE\nJet Length (VGR) - 3-4 m\nCharge Weight - 6 kg\nOperating Pressure - 1.4 MPa\nDuration of VGR Discharge - 9 seconds\nDisplacement of Extinguishing Agent - Gas-pressurized\nTrigger Mechanism - Lever-type locking and triggering device\nRechargeable - Rechargeable\nTotal Weight - 12 kg","Вогнегасник ВП-6 (ОП-6), характеристики нижче або аналог \nОсобливості - З манометром \nТип пристрою - Вогнегасник переносний (ручний)\nЗастосування до пожеж -  А, В, C\nТип вихідного струменя - ІВ(К)\nТип пінного потоку - ОВП(В)\nТип порошку - АВСЕ\nДовжина струменя ВГР - 3-4 м\nМаса заряду - 6 кг\nРобочий тиск - 1.4 МПа\nТривалість подачі ВГР - 9 сек\nВитіснення гасячої речовини - Закачаний газом\nПусковий пристрій - Запірно-пусковим пристроєм важільного типу\nМожливість відновлення - Перезаряджаємий\nЗагальна маса - 12 кг","pcs. | шт.",200,null,null,{"v":0,"d":"0.00"},{"$f":"Table1[[#This Row],[Unit Price, UAH excl. VAT\n| \nЦіна за од-цю, гривень без ПДВ]]*Table1[[#This Row],[Quantity to order / \nКількість к замовленню]]","v":{"v":0,"d":"0.00"}}]
[2,{"$f":"B16+1","v":2},{"$f":"_xlfn.CONCAT(Table1[[#This Row],[№ LOT | № ЛОТ]],\".\",Table1[[#This Row],[Column1]])","v":"2.2"},"Portable LED Lamp (20 m), specifications below or similar\nPower: 60 W\nVoltage: 220 V\nSocket: E27\nCord Length: 20 m\nConnection Method: Mains powered","Переносна лампа світлодіодна (20 м), характеристики нижче або аналог \nПотужність: 60 Вт\nНапруга: 220 В\nЦоколь: E 27\nДовжина проводу: 20 М\nСпосіб підключення: Від мережі","pcs. | шт.",50,null,null,{"v":0,"d":"0.00"},{"$f":"Table1[[#This Row],[Unit Price, UAH excl. VAT\n| \nЦіна за од-цю, гривень без ПДВ]]*Table1[[#This Row],[Quantity to order / \nКількість к замовленню]]","v":{"v":0,"d":"0.00"}}]
[2,3,{"$f":"_xlfn.CONCAT(Table1[[#This Row],[№ LOT | № ЛОТ]],\".\",Table1[[#This Row],[Column1]])","v":"2.3"},"Rechargeable Flashlight, specifications below or similar\nType: Rechargeable Lantern\nCharging Methods: Via USB / 12V Mains / 220V Mains","Ліхтар акумуляторний, характеристики нижче або аналог \nВид - ліхтар аккумуляторний \nСпособи заряджання: Від USB / Від мережі 12 В / Від мережі 220 В","pcs. | шт.",25,null,null,{"v":0,"d":"0.00"},{"$f":"Table1[[#This Row],[Unit Price, UAH excl. VAT\n| \nЦіна за од-цю, гривень без ПДВ]]*Table1[[#This Row],[Quantity to order / \nКількість к замовленню]]","v":{"v":0,"d":"0.00"}}]
[2,4,{"$f":"_xlfn.CONCAT(Table1[[#This Row],[№ LOT | № ЛОТ]],\".\",Table1[[#This Row],[Column1]])","v":"2.4"},"Microfiber Blanket, specifications below or similar\nType: Blanket, Blanket-cover\nDimensions: 140 x 200 cm / 160 x 200 cm\nSleeping Size: One-and-a-half\nMaterial: Polyester","Плед мікрофібра, характеристики нижче або аналог\nТип: Плед, Плед-покривало\nРозміри: 140 x 200 см / 160 x 200 см\nСпальний розмір: Полуторні\nМатеріал: Поліестер","pcs. | шт.",625,null,null,{"v":0,"d":"0.00"},{"$f":"Table1[[#This Row],[Unit Price, UAH excl. VAT\n| \nЦіна за од-цю, гривень без ПДВ]]*Table1[[#This Row],[Quantity to order / \nКількість к замовленню]]","v":{"v":0,"d":"0.00"}}]
[2,5,{"$f":"_xlfn.CONCAT(Table1[[#This Row],[№ LOT | № ЛОТ]],\".\",Table1[[#This Row],[Column1]])","v":"2.5"},"Trash bin, specifications below or similar\nVolume - 30 L\nConstruction - With lid\nColor - Dark\nPurpose - For MSW (Municipal Solid Waste)\nMaterial - Plastic","Сміттєвий бак, характеристики нижче або аналог\nОб'єм - 30 л\nКонструкція - З кришкою \nКолір - темний  \nПризначення  Для ТПВ \nМатеріал  - Пластик","pcs. | шт.",100,null,null,{"v":0,"d":"0.00"},{"$f":"Table1[[#This Row],[Unit Price, UAH excl. VAT\n| \nЦіна за од-цю, гривень без ПДВ]]*Table1[[#This Row],[Quantity to order / \nКількість к замовленню]]","v":{"v":0,"d":"0.00"}}]
[null,null,{"$f":"_xlfn.CONCAT(Table1[[#This Row],[№ LOT | № ЛОТ]],\".\",Table1[[#This Row],[Column1]])","v":"."},{"$nulls":6},"Total amount VAT excl. |\nЗагальна сума без ПДВ",{"$f":"SUBTOTAL(109,K16:K20)","v":{"v":0,"d":"0.00"}}]
["Core note 1: Delivery destination - Kyiv region. /\nОсновна примітка 1: Місце доставки - Київська область.\n\nGeneral notes: / Загальні примітки:\n1•\tAll Goods offered in response to this ITT must be new and unused. / \n1•\tУсі Товари, що пропонуються у відповідь на цю ITT, повинні бути новими та невикористаними.\n2•\tAll electrical Goods must operate on 240V, 50Hz.  [ignore if not applicable] / \n2•\tВсі електричні товари повинні працювати від мережі 240 В, 50 Гц.  [ігнорувати, якщо не застосовується]\n3•\tUnit prices must include applicable transportation/delivery/installation/unloading costs and local taxes, excluding VAT.  / \n3•\tЦіни повинні включати відповідні витрати на транспортування/доставку/монтаж/розвантаження та місцеві податки, без урахування ПДВ. \n4•\tUnless otherwise indicated, stated brand names or models are for illustrative description only.  An equivalent substitute, as determined by the specifications, is acceptable. / \n4•\tЯкщо не вказано інше, зазначені торгові марки або моделі слугують лише для ілюстративного опису.  Допускається еквівалентна заміна, визначена технічними характеристиками.\n5•\tWarranty service and repair within the country of performance is required for all Goods under this ITT. The warranty coverage must be valid on all Goods for a minimum of twelve (12) months after delivery and acceptance of the Goods, unless otherwise specified in the technical specifications. / \n5•\tГарантійне обслуговування та ремонт у країні виконання робіт є обов'язковим для всіх Товарів за цією ІТТ. Гарантійне покриття має бути дійсним для всіх Товарів протягом щонайменше дванадцяти (12) місяців після доставки та приймання Товарів, якщо інше не зазначено в технічних специфікаціях."]
[{"$nulls":10},"Bidder to complete | Для заповненя постачальнику:"]
["Delivery Terms (INCOTERMS 2020): | \nУмови постачання (ІНКОТЕРМС 2020):"]
["Payment terms (Chemonics requirement - 100% post-payment, NET within 30 c.d.): | \nУмови оплати (вимога Chemonics - 100% післяплата, NET протягом 30 к.д.):"]
["Bid validity (c.d.) | \nТермін дії пропозиції (к.д.)"]
["Bid currency: | \nВалюта пропозиції: ",{"$nulls":9},"UAH | Гривні"]
["Warranty period (months): |\nГарантійний термін (місяців):"]
["Delivery time - calendar days (after PO signing) |\nТермін поставки - календарні дні (після підписання Договору на поставку)"]
[]
["Company name according to the Charter: | \nНазва компанії згідно Статуту:"]
["EDRPOU | ЄДРПОУ:"]
["Indicate the status of the company (Manufacturer / trader / distributor): | \nВкажіть статус компанії (виробник / трейдер / дистриб'ютор):"]
["Signature of the company representative and Stamp | \nПідпис представника підприємства та Печатка"]
["Date | Дата:"]
["Contact person of the company (whith role): | \nКонтактна особа компанії (із зазначенням посади):"]
["Mobile: | Мобільний:"]
["Після заповнення, вимога Chemonics - надати цей документ у підписаному/завіреному печаткою форматі PDF та Excel.",{"$nulls":8},"E-mail:"]
["Once completed, Chemonics requirement - provide this document in both signed/stamped PDF and Excel formats.\n"]

{"sheet":"Sheet2","index":1,"n_rows":55,"n_cols":10,"rows_kept":55,"hidden":true,"merged":[[46,4,46,9],[51,4,51,9]]}
[]
[]
[{"$nulls":4},"x"]
[{"$nulls":3},150,19.420782939910104,null,19.42,null,{"$f":"D4*G4","v":{"v":2913.0000000000005,"d":"2,913.00"}}]
[{"$nulls":3},30,22.562751967112074,null,22.57,null,{"$f":"G5*D5","v":{"v":677.1,"d":"677.10"}}]
[{"$nulls":8},{"$f":"SUM(I4:I5)","v":{"v":3590.1000000000004,"d":"3,590.10"}}]
[{"$nulls":4},{"$f":"(D4*E4)+(D5*E5)","v":3589.999999999878}]
[]
[]
[]
[]
[]
[]
[{"$nulls":5},"Пропозиція по тендеру","Запропоновано","Ціна","Кількість","Сума"]
[{"$nulls":5},"ДСП Egger U 963 ST9 Діамант сірий (Антрацит) 2800х2070х25 мм Нарізані ДСП плити товщина 25 мл. Темно сірого або чорного кольору з матавим покриттям з кромкою чорного кольору.\nВисота 2700 см (з кромкою)\nШирина 30 см (з кромкою)","ДСП U963 ST9 Діамант сірий 2800х2070х25 мм EGGER (2024-26)\nВисота 2700 см (з кромкою)\nШирина 30 см (з кромкою)",22.57,{"v":30,"d":"30.00"},{"$f":"H15*I15","v":{"v":677.1,"d":"677.10"}}]
[{"$nulls":5},"ДСП Egger U 963 ST9 Діамант сірий (Антрацит) 2800х2070х25 мм Нарізані ДСП плити товщина 25 мл. Темно сірого або чорного кольору з матавим покриттям з кромкою чорного кольору. Довжина 900 см (з кромкою)\nШирина 30 см (без кромки)","ДСП U963 ST9 Діамант сірий 2800х2070х25 мм EGGER (2024-26)\nДовжина 900 см (з кромкою)\nШирина 30 см (без кромки)",19.42,{"v":150,"d":"150.00"},{"$f":"H16*I16","v":{"v":2913.0000000000005,"d":"2,913.00"}}]
[{"$nulls":9},{"$f":"SUM(J15:J16)","v":{"v":3590.1000000000004,"d":"3,590.10"}}]
{"$rows_empty":29}
[{"$nulls":4},"Before"]
[{"$nulls":5},"Description","UoM","Qty","Price","Amount"]
[{"$nulls":4},227,"Egger chipboard U 963 ST9 Diamond gray (Anthracite) 2800x2070x25 mm Sliced chipboard boards 25 ml thick. Dark gray or black with a matte finish with a black edge banding. Height 2700 mm (with edge banding) Width 300 mm (with edge banding)","sheet",14,188.3,{"$f":"H49*I49","v":{"v":2636.2000000000003,"d":"2,636.20"}}]
[{"$nulls":4},228,"Edge ABS U963 ST9 Diamond Gray 43*2 mm (75 m/p) EGGER Щ(2024-26)","linear meter",510,1.87,{"$f":"H50*I50","v":{"v":953.7,"d":"953.70"}}]
[{"$nulls":9},{"$f":"SUM(J49:J50)","v":{"v":3589.9000000000005,"d":"3,589.90"}}]
[{"$nulls":4},"Now"]
[{"$nulls":4},227,"Chipboard U963 ST9 Diamond gray 2800x2070x25 mm EGGER (2024-26) Height 2700 mm (with edge) Width 300 mm (with edge)","pcs",30,22.57,{"$f":"H53*I53","v":{"v":677.1,"d":"677.10"}}]
[{"$nulls":4},228,"Chipboard U963 ST9 Diamond gray 2800x2070x25 mm EGGER (2024-26) Length 900 mm (with edge banding) Width 300 mm (without edge banding)","pcs",150,19.41,{"$f":"H54*I54","v":{"v":2911.5,"d":"2,911.50"}}]
[{"$nulls":9},{"$f":"SUM(J53:J54)","v":{"v":3588.6,"d":"3,588.60"}}]

{"sheet":"Sheet1","index":2,"n_rows":6,"n_cols":8,"rows_kept":6,"hidden":true}
[]
[{"$nulls":4},"Плити мінераловатні ТЕХНОБЛОК СТАНДАРТ 1200*600*100мм (6 плит)",411,"м2","Високопілля, вул. Енергетична (Гагаріна), 7"]
[{"$nulls":4},"Утеплювач Техноблок Стандарт 1200х600х50мм (5,76/8пл) МП",186,"м2","Високопілля, вул. Енергетична (Гагаріна), 7"]
[{"$nulls":4},"Плити теплоізоляційні з минеральної вати на синтетичному зв'язуючому Izovat-LS(1000x600x100 мм)",33,"м2","Високопілля, вул. Енергетична (Гагаріна), 7"]
[{"$nulls":4},"Плити мінераловатні ТЕХНОБЛОК СТАНДАРТ 1200*600*100мм (6 плит)",250,"м2","Shkilna 104, Kalynivske village, 74131 , Beryslav district, Kherson Oblast \n(47.11839256223751, 32.982446441864816)"]
[{"$nulls":4},"Плити мінераловатні ТЕХНОБЛОК СТАНДАРТ 1200*600*100мм (6 плит)",300,"м2","Shkilna 120, Kalynivske village, 74131 , Beryslav district, Kherson Oblast (47.11650667082786, 32.97544873404343)"]